[Event "Titled Tuesday Blitz August 1 Early 2023"]
[White "Vantika Agrawal"]
[Black "Yashmetov, Mikhail"]
[WhiteFideId "25050389"]
[BlackFideId "24198900"]
[WhiteElo "2613"]
[BlackElo "2466"]
[Result "1-0"]
[Round "9"]
[TimeControl "180+1"]
[Date "2023.08.01"]
[WhiteClock "0:01:26"]
[BlackClock "0:00:05"]
[Board "90"]

1. d4 {[%clk 0:03:00]}  Nf6 {[%clk 0:02:58]} 2. c4 {[%clk 0:02:59]}  e6 {[%clk 0:02:57]} 3. Nf3 {[%clk 0:02:58]}  d5 {[%clk 0:02:58]} 4. g3 {[%clk 0:02:58]}  Bb4+ {[%clk 0:02:58]} 5. Bd2 {[%clk 0:02:58]}  Be7 {[%clk 0:02:59]} 6. Bg2 {[%clk 0:02:59]}  O-O {[%clk 0:03:00]} 7. O-O {[%clk 0:02:59]}  b6 {[%clk 0:03:00]} 8. cxd5 {[%clk 0:02:59]}  exd5 {[%clk 0:02:43]} 9. Nc3 {[%clk 0:02:58]}  Bb7 {[%clk 0:02:42]} 10. Bf4 {[%clk 0:02:58]}  Na6 {[%clk 0:02:41]} 11. Rc1 {[%clk 0:02:58]}  c5 {[%clk 0:02:42]} 12. Ne5 {[%clk 0:02:40]}  h6 {[%clk 0:02:26]} 13. h4 {[%clk 0:02:25]}  Ne4 {[%clk 0:02:21]} 14. Nxe4 {[%clk 0:02:21]}  dxe4 {[%clk 0:02:22]} 15. dxc5 {[%clk 0:02:20]}  Nxc5 {[%clk 0:02:19]} 16. Qc2 {[%clk 0:02:18]}  Rc8 {[%clk 0:02:15]} 17. Rfd1 {[%clk 0:02:17]}  Qe8 {[%clk 0:02:15]} 18. Qd2 {[%clk 0:02:07]}  Qa4 {[%clk 0:02:05]} 19. b3 {[%clk 0:02:03]}  Qb5 {[%clk 0:01:54]} 20. Bh3 {[%clk 0:01:46]}  Rcd8 {[%clk 0:01:54]} 21. Qe3 {[%clk 0:01:46]}  Qa5 {[%clk 0:01:36]} 22. Bxh6 {[%clk 0:01:44]}  gxh6 {[%clk 0:01:14]} 23. Qxh6 {[%clk 0:01:43]}  Bc8 {[%clk 0:01:10]} 24. Nc6 {[%clk 0:01:35]}  Rde8 {[%clk 0:00:05]} 25. Bxc8 {[%clk 0:01:26]} 1-0


[Site "https://www.chess.com"]

[Event "Titled Tuesday Blitz August 1 Early 2023"]
[White "Romero Pallares, Daniel"]
[Black "Derige Kane, Yan"]
[WhiteFideId "32025637"]
[BlackFideId "20665431"]
[WhiteElo "2462"]
[BlackElo "2587"]
[Result "0-1"]
[Round "9"]
[TimeControl "180+1"]
[Date "2023.08.01"]
[WhiteClock "0:00:55"]
[BlackClock "0:01:04"]
[Board "91"]

1. d4 {[%clk 0:03:00]}  d5 {[%clk 0:02:59]} 2. Nf3 {[%clk 0:02:54]}  Nf6 {[%clk 0:02:57]} 3. Bf4 {[%clk 0:02:54]}  e6 {[%clk 0:02:58]} 4. e3 {[%clk 0:02:54]}  Bd6 {[%clk 0:02:58]} 5. Nbd2 {[%clk 0:02:54]}  O-O {[%clk 0:02:59]} 6. c3 {[%clk 0:02:50]}  c5 {[%clk 0:03:00]} 7. Bd3 {[%clk 0:02:49]}  Qc7 {[%clk 0:03:00]} 8. Bxd6 {[%clk 0:02:48]}  Qxd6 {[%clk 0:03:00]} 9. Ne5 {[%clk 0:02:49]}  Nc6 {[%clk 0:02:59]} 10. f4 {[%clk 0:02:48]}  b6 {[%clk 0:03:00]} 11. Qf3 {[%clk 0:02:47]}  Bb7 {[%clk 0:03:00]} 12. O-O {[%clk 0:02:43]}  Ne7 {[%clk 0:03:00]} 13. g4 {[%clk 0:02:42]}  Nd7 {[%clk 0:02:52]} 14. g5 {[%clk 0:02:34]}  Nf5 {[%clk 0:02:42]} 15. Qh3 {[%clk 0:02:03]}  g6 {[%clk 0:02:31]} 16. Rae1 {[%clk 0:02:03]}  f6 {[%clk 0:02:29]} 17. Nxd7 {[%clk 0:01:54]}  Qxd7 {[%clk 0:02:28]} 18. Nf3 {[%clk 0:01:53]}  Qg7 {[%clk 0:02:16]} 19. gxf6 {[%clk 0:01:48]}  Rxf6 {[%clk 0:02:17]} 20. Kf2 {[%clk 0:01:48]}  Raf8 {[%clk 0:02:15]} 21. Rg1 {[%clk 0:01:47]}  cxd4 {[%clk 0:02:09]} 22. cxd4 {[%clk 0:01:43]}  Bc8 {[%clk 0:01:55]} 23. Ne5 {[%clk 0:01:42]}  Nd6 {[%clk 0:01:46]} 24. Ke2 {[%clk 0:01:39]}  Ne4 {[%clk 0:01:41]} 25. Bxe4 {[%clk 0:01:38]}  dxe4 {[%clk 0:01:42]} 26. Rc1 {[%clk 0:01:39]}  Ba6+ {[%clk 0:01:41]} 27. Kd2 {[%clk 0:01:38]}  Qe7 {[%clk 0:01:39]} 28. a3 {[%clk 0:01:34]}  Qe8 {[%clk 0:01:34]} 29. Rc7 {[%clk 0:01:31]}  R8f7 {[%clk 0:01:24]} 30. Nxf7 {[%clk 0:01:27]}  Rxf7 {[%clk 0:01:25]} 31. Rgc1 {[%clk 0:01:26]}  Qb5 {[%clk 0:01:21]} 32. R1c4 {[%clk 0:01:00]}  Qxb2+ {[%clk 0:01:14]} 33. Rc2 {[%clk 0:01:00]}  Qb3 {[%clk 0:01:05]} 34. Qxe6 {[%clk 0:00:55]}  Qxe6 {[%clk 0:01:04]} 0-1


[Site "https://www.chess.com"]

[Event "Titled Tuesday Blitz August 1 Early 2023"]
[White "Kazakov, Mikhail"]
[Black "vishwa_vijeta"]
[WhiteFideId "14102749"]
[WhiteElo "2452"]
[BlackElo "2580"]
[Result "0-1"]
[Round "9"]
[TimeControl "180+1"]
[Date "2023.08.01"]
[WhiteClock "0:00:00"]
[BlackClock "0:00:16"]
[Board "92"]

1. e4 {[%clk 0:03:00]}  c5 {[%clk 0:02:59]} 2. Nf3 {[%clk 0:02:59]}  d6 {[%clk 0:03:00]} 3. d4 {[%clk 0:02:58]}  cxd4 {[%clk 0:03:00]} 4. Nxd4 {[%clk 0:02:58]}  Nf6 {[%clk 0:03:01]} 5. Nc3 {[%clk 0:02:58]}  g6 {[%clk 0:03:01]} 6. Be3 {[%clk 0:02:54]}  Bg7 {[%clk 0:03:01]} 7. f3 {[%clk 0:02:55]}  O-O {[%clk 0:03:00]} 8. Qd2 {[%clk 0:02:55]}  Nc6 {[%clk 0:03:00]} 9. O-O-O {[%clk 0:02:54]}  d5 {[%clk 0:03:00]} 10. Qe1 {[%clk 0:02:31]}  e5 {[%clk 0:03:00]} 11. Nxc6 {[%clk 0:02:17]}  bxc6 {[%clk 0:03:01]} 12. Bc5 {[%clk 0:02:15]}  Re8 {[%clk 0:02:46]} 13. b3 {[%clk 0:02:10]}  Qa5 {[%clk 0:02:40]} 14. Na4 {[%clk 0:02:08]}  Qc7 {[%clk 0:02:32]} 15. Bd3 {[%clk 0:02:00]}  d4 {[%clk 0:02:29]} 16. g4 {[%clk 0:01:52]}  Be6 {[%clk 0:02:28]} 17. Qe2 {[%clk 0:01:48]}  Nd7 {[%clk 0:02:28]} 18. Ba3 {[%clk 0:01:46]}  c5 {[%clk 0:02:21]} 19. Bc4 {[%clk 0:01:46]}  Nb6 {[%clk 0:02:18]} 20. Bxe6 {[%clk 0:01:32]}  Nxa4 {[%clk 0:02:10]} 21. Bd5 {[%clk 0:01:21]}  Nc3 {[%clk 0:02:09]} 22. Qc4 {[%clk 0:01:14]}  Rac8 {[%clk 0:01:36]} 23. Rd3 {[%clk 0:00:53]}  Qa5 {[%clk 0:01:33]} 24. Kb2 {[%clk 0:00:47]}  Rb8 {[%clk 0:01:19]} 25. Rxc3 {[%clk 0:00:45]}  dxc3+ {[%clk 0:01:14]} 26. Qxc3 {[%clk 0:00:46]}  Qa6 {[%clk 0:01:12]} 27. Bc4 {[%clk 0:00:39]}  Qd6 {[%clk 0:01:09]} 28. Qd3 {[%clk 0:00:35]}  Qd4+ {[%clk 0:01:03]} 29. Qxd4 {[%clk 0:00:28]}  exd4 {[%clk 0:01:01]} 30. Kb1 {[%clk 0:00:21]}  Bf8 {[%clk 0:00:58]} 31. h4 {[%clk 0:00:20]}  h6 {[%clk 0:00:54]} 32. Bc1 {[%clk 0:00:17]}  a5 {[%clk 0:00:52]} 33. Bd5 {[%clk 0:00:17]}  a4 {[%clk 0:00:48]} 34. g5 {[%clk 0:00:17]}  h5 {[%clk 0:00:47]} 35. f4 {[%clk 0:00:17]}  axb3 {[%clk 0:00:47]} 36. cxb3 {[%clk 0:00:17]}  c4 {[%clk 0:00:47]} 37. f5 {[%clk 0:00:14]}  cxb3 {[%clk 0:00:41]} 38. axb3 {[%clk 0:00:11]}  gxf5 {[%clk 0:00:40]} 39. exf5 {[%clk 0:00:12]}  Re5 {[%clk 0:00:41]} 40. Bc4 {[%clk 0:00:12]}  Rxf5 {[%clk 0:00:41]} 41. g6 {[%clk 0:00:12]}  Bg7 {[%clk 0:00:35]} 42. gxf7+ {[%clk 0:00:12]}  Kh8 {[%clk 0:00:35]} 43. Re1 {[%clk 0:00:12]}  Rf8 {[%clk 0:00:31]} 44. Bg5 {[%clk 0:00:12]}  d3 {[%clk 0:00:26]} 45. Re8 {[%clk 0:00:09]}  Rf1+ {[%clk 0:00:23]} 46. Bc1 {[%clk 0:00:03]}  d2 {[%clk 0:00:23]} 47. Bxf1 {[%clk 0:00:03]}  d1=Q {[%clk 0:00:23]} 48. Bc4 {[%clk 0:00:00]}  Kh7 {[%clk 0:00:16]} 0-1


[Site "https://www.chess.com"]

[Event "Titled Tuesday Blitz August 1 Early 2023"]
[White "Herman, Daniel"]
[Black "Tologon tegin, Semetei"]
[WhiteFideId "30935008"]
[BlackFideId "13800574"]
[WhiteElo "2445"]
[BlackElo "2563"]
[Result "1/2-1/2"]
[Round "9"]
[TimeControl "180+1"]
[Date "2023.08.01"]
[WhiteClock "0:00:18"]
[BlackClock "0:00:25"]
[Board "94"]

1. Nf3 {[%clk 0:03:00]}  d5 {[%clk 0:02:53]} 2. g3 {[%clk 0:03:01]}  Nf6 {[%clk 0:02:51]} 3. Bg2 {[%clk 0:03:01]}  g6 {[%clk 0:02:52]} 4. O-O {[%clk 0:03:02]}  Bg7 {[%clk 0:02:53]} 5. d3 {[%clk 0:03:02]}  O-O {[%clk 0:02:54]} 6. Qe1 {[%clk 0:02:56]}  b6 {[%clk 0:02:55]} 7. c4 {[%clk 0:02:47]}  Bb7 {[%clk 0:02:53]} 8. cxd5 {[%clk 0:02:47]}  Nxd5 {[%clk 0:02:52]} 9. Nc3 {[%clk 0:02:47]}  c5 {[%clk 0:02:47]} 10. Bd2 {[%clk 0:02:45]}  Nc6 {[%clk 0:02:44]} 11. Nxd5 {[%clk 0:02:37]}  Qxd5 {[%clk 0:02:43]} 12. Bc3 {[%clk 0:02:29]}  Nd4 {[%clk 0:02:26]} 13. Bxd4 {[%clk 0:02:08]}  Bxd4 {[%clk 0:02:23]} 14. Nh4 {[%clk 0:01:31]}  Qd7 {[%clk 0:02:22]} 15. Bxb7 {[%clk 0:01:31]}  Qxb7 {[%clk 0:02:22]} 16. Qd2 {[%clk 0:01:32]}  f5 {[%clk 0:02:16]} 17. Nf3 {[%clk 0:01:22]}  Bg7 {[%clk 0:02:08]} 18. Qe3 {[%clk 0:01:17]}  e5 {[%clk 0:02:01]} 19. Nxe5 {[%clk 0:01:12]}  Bxe5 {[%clk 0:02:01]} 20. Qxe5 {[%clk 0:01:12]}  Rae8 {[%clk 0:02:01]} 21. Qc3 {[%clk 0:01:07]}  Rxe2 {[%clk 0:02:01]} 22. Rae1 {[%clk 0:01:05]}  Rfe8 {[%clk 0:01:55]} 23. Rxe2 {[%clk 0:01:02]}  Rxe2 {[%clk 0:01:56]} 24. d4 {[%clk 0:01:03]}  Qd5 {[%clk 0:01:52]} 25. dxc5 {[%clk 0:01:01]}  bxc5 {[%clk 0:01:51]} 26. a3 {[%clk 0:00:45]}  h5 {[%clk 0:01:24]} 27. Qf6 {[%clk 0:00:42]}  Kh7 {[%clk 0:01:22]} 28. h4 {[%clk 0:00:24]}  c4 {[%clk 0:01:13]} 29. Kh2 {[%clk 0:00:23]}  Qc5 {[%clk 0:01:05]} 30. Qf7+ {[%clk 0:00:21]}  Kh6 {[%clk 0:00:43]} 31. Qf6 {[%clk 0:00:16]}  Rxf2+ {[%clk 0:00:41]} 32. Kh3 {[%clk 0:00:17]}  Kh7 {[%clk 0:00:27]} 33. Qf7+ {[%clk 0:00:17]}  Kh8 {[%clk 0:00:26]} 34. Rxf2 {[%clk 0:00:16]}  Qxf2 {[%clk 0:00:25]} 35. Qf8+ {[%clk 0:00:16]}  Kh7 {[%clk 0:00:25]} 36. Qf7+ {[%clk 0:00:16]}  Kh6 {[%clk 0:00:24]} 37. Qf8+ {[%clk 0:00:17]}  Kh7 {[%clk 0:00:25]} 38. Qf7+ {[%clk 0:00:18]}  Kh6 {[%clk 0:00:25]} 39. Qf8+ {[%clk 0:00:18]}  Kh7 {[%clk 0:00:25]} 1/2-1/2


[Site "https://www.chess.com"]

[Event "Titled Tuesday Blitz August 1 Early 2023"]
[White "To, Nhat Minh"]
[Black "Vivas Zamora, Fabian Ernesto"]
[WhiteFideId "729019"]
[BlackFideId "3902480"]
[WhiteElo "2548"]
[BlackElo "2440"]
[Result "1-0"]
[Round "9"]
[TimeControl "180+1"]
[Date "2023.08.01"]
[WhiteClock "0:00:37"]
[BlackClock "0:00:00"]
[Board "97"]

1. e4 {[%clk 0:02:56]}  c5 {[%clk 0:02:58]} 2. d3 {[%clk 0:02:53]}  Nc6 {[%clk 0:02:38]} 3. g3 {[%clk 0:02:49]}  d5 {[%clk 0:02:37]} 4. Nc3 {[%clk 0:02:47]}  Nf6 {[%clk 0:02:26]} 5. Bg2 {[%clk 0:02:45]}  dxe4 {[%clk 0:02:08]} 6. Nxe4 {[%clk 0:02:44]}  Nxe4 {[%clk 0:01:59]} 7. Bxe4 {[%clk 0:02:45]}  g6 {[%clk 0:01:42]} 8. Ne2 {[%clk 0:02:28]}  Bg7 {[%clk 0:01:38]} 9. O-O {[%clk 0:02:28]}  h5 {[%clk 0:01:28]} 10. h4 {[%clk 0:02:24]}  Bg4 {[%clk 0:01:23]} 11. c3 {[%clk 0:02:24]}  Qd7 {[%clk 0:01:16]} 12. Be3 {[%clk 0:02:23]}  b6 {[%clk 0:00:31]} 13. Qa4 {[%clk 0:02:23]}  Rc8 {[%clk 0:00:30]} 14. Nf4 {[%clk 0:02:17]}  O-O {[%clk 0:00:25]} 15. Rfe1 {[%clk 0:02:16]}  Ne5 {[%clk 0:00:23]} 16. Qxd7 {[%clk 0:02:14]}  Bxd7 {[%clk 0:00:23]} 17. Nd5 {[%clk 0:02:05]}  Rfe8 {[%clk 0:00:22]} 18. Bg5 {[%clk 0:02:05]}  f6 {[%clk 0:00:19]} 19. Bf4 {[%clk 0:02:02]}  f5 {[%clk 0:00:04]} 20. Bxe5 {[%clk 0:01:42]}  Bxe5 {[%clk 0:00:04]} 21. Bxf5 {[%clk 0:01:37]}  Bxf5 {[%clk 0:00:04]} 22. Rxe5 {[%clk 0:01:38]}  Kf7 {[%clk 0:00:04]} 23. Rae1 {[%clk 0:01:32]}  e6 {[%clk 0:00:03]} 24. Nf4 {[%clk 0:01:33]}  Rcd8 {[%clk 0:00:03]} 25. R5e3 {[%clk 0:01:22]}  e5 {[%clk 0:00:02]} 26. Rxe5 {[%clk 0:01:20]}  Rxe5 {[%clk 0:00:02]} 27. Rxe5 {[%clk 0:01:21]}  Bxd3 {[%clk 0:00:03]} 28. a4 {[%clk 0:01:07]}  Bc2 {[%clk 0:00:02]} 29. a5 {[%clk 0:01:06]}  Rd1+ {[%clk 0:00:02]} 30. Kg2 {[%clk 0:01:06]}  Ba4 {[%clk 0:00:02]} 31. Re6 {[%clk 0:00:55]}  Bc2 {[%clk 0:00:01]} 32. axb6 {[%clk 0:00:53]}  axb6 {[%clk 0:00:01]} 33. Kf3 {[%clk 0:00:41]}  b5 {[%clk 0:00:00]} 34. Rb6 {[%clk 0:00:37]} 1-0


[Site "https://www.chess.com"]

[Event "Titled Tuesday Blitz August 1 Early 2023"]
[White "Nurgaliyeva, Zarina"]
[Black "Harriott, Tyrell"]
[WhiteFideId "13730096"]
[BlackFideId "2086484"]
[WhiteElo "2545"]
[BlackElo "2431"]
[Result "1-0"]
[Round "9"]
[TimeControl "180+1"]
[Date "2023.08.01"]
[WhiteClock "0:00:19"]
[BlackClock "0:00:10"]
[Board "98"]

1. e4 {[%clk 0:03:00]}  d5 {[%clk 0:02:46]} 2. exd5 {[%clk 0:02:59]}  Nf6 {[%clk 0:02:46]} 3. d4 {[%clk 0:02:53]}  Qxd5 {[%clk 0:02:43]} 4. Nc3 {[%clk 0:02:51]}  Qd6 {[%clk 0:02:42]} 5. Nf3 {[%clk 0:02:47]}  a6 {[%clk 0:02:39]} 6. Ne5 {[%clk 0:02:44]}  Nc6 {[%clk 0:02:36]} 7. Nxc6 {[%clk 0:02:35]}  Qxc6 {[%clk 0:02:33]} 8. d5 {[%clk 0:02:35]}  Qd6 {[%clk 0:02:29]} 9. Be2 {[%clk 0:02:34]}  Bf5 {[%clk 0:02:28]} 10. Bf3 {[%clk 0:02:29]}  O-O-O {[%clk 0:02:27]} 11. Qd4 {[%clk 0:02:25]}  Kb8 {[%clk 0:02:22]} 12. O-O {[%clk 0:02:16]}  Bxc2 {[%clk 0:02:18]} 13. Bf4 {[%clk 0:02:16]}  Qd7 {[%clk 0:02:12]} 14. Rac1 {[%clk 0:02:14]}  Bg6 {[%clk 0:01:31]} 15. Nb5 {[%clk 0:01:40]}  axb5 {[%clk 0:01:21]} 16. Rxc7 {[%clk 0:01:39]}  Qxc7 {[%clk 0:01:21]} 17. Bxc7+ {[%clk 0:01:34]}  Kxc7 {[%clk 0:01:22]} 18. Rc1+ {[%clk 0:01:31]}  Kd7 {[%clk 0:00:54]} 19. Qb6 {[%clk 0:01:21]}  Ke8 {[%clk 0:00:52]} 20. Qxb5+ {[%clk 0:01:19]}  Nd7 {[%clk 0:00:52]} 21. Rc7 {[%clk 0:01:19]}  e6 {[%clk 0:00:48]} 22. dxe6 {[%clk 0:01:11]}  fxe6 {[%clk 0:00:48]} 23. Qxb7 {[%clk 0:01:11]}  Bd6 {[%clk 0:00:45]} 24. Rxd7 {[%clk 0:01:02]}  Rxd7 {[%clk 0:00:42]} 25. Bc6 {[%clk 0:01:03]}  Be7 {[%clk 0:00:40]} 26. Qxd7+ {[%clk 0:01:00]}  Kf7 {[%clk 0:00:40]} 27. Bf3 {[%clk 0:00:53]}  Rd8 {[%clk 0:00:35]} 28. Qc7 {[%clk 0:00:49]}  Kf8 {[%clk 0:00:31]} 29. g3 {[%clk 0:00:45]}  Bb1 {[%clk 0:00:26]} 30. a4 {[%clk 0:00:42]}  Bf5 {[%clk 0:00:21]} 31. Kg2 {[%clk 0:00:31]}  g6 {[%clk 0:00:18]} 32. a5 {[%clk 0:00:30]}  h5 {[%clk 0:00:17]} 33. a6 {[%clk 0:00:30]}  e5 {[%clk 0:00:14]} 34. a7 {[%clk 0:00:28]}  e4 {[%clk 0:00:14]} 35. Qxd8+ {[%clk 0:00:26]}  Bxd8 {[%clk 0:00:13]} 36. a8=Q {[%clk 0:00:27]}  exf3+ {[%clk 0:00:13]} 37. Kxf3 {[%clk 0:00:27]}  Ke8 {[%clk 0:00:13]} 38. b4 {[%clk 0:00:25]}  Kd7 {[%clk 0:00:13]} 39. b5 {[%clk 0:00:25]}  Be7 {[%clk 0:00:12]} 40. Qc6+ {[%clk 0:00:24]}  Kd8 {[%clk 0:00:12]} 41. b6 {[%clk 0:00:24]}  Bd7 {[%clk 0:00:11]} 42. Qc7+ {[%clk 0:00:23]}  Ke8 {[%clk 0:00:11]} 43. b7 {[%clk 0:00:23]}  Bg4+ {[%clk 0:00:10]} 44. Ke3 {[%clk 0:00:22]}  Kf7 {[%clk 0:00:11]} 45. b8=Q {[%clk 0:00:21]}  Ke6 {[%clk 0:00:12]} 46. Qbc8+ {[%clk 0:00:20]}  Kf7 {[%clk 0:00:12]} 47. Q8d8 {[%clk 0:00:18]}  Kg7 {[%clk 0:00:10]} 48. Qcxe7+ {[%clk 0:00:19]}  Kh6 {[%clk 0:00:10]} 49. Qh8# {[%clk 0:00:19]} 1-0


[Site "https://www.chess.com"]

[Event "Titled Tuesday Blitz August 1 Early 2023"]
[White "Andreev, Konstantin"]
[Black "Tsyhanchuk, Stanislav"]
[WhiteFideId "24239305"]
[BlackFideId "13505130"]
[WhiteElo "2542"]
[BlackElo "2425"]
[Result "1-0"]
[Round "9"]
[TimeControl "180+1"]
[Date "2023.08.01"]
[WhiteClock "0:00:21"]
[BlackClock "0:00:03"]
[Board "100"]

1. e4 {[%clk 0:03:00]}  c5 {[%clk 0:02:59]} 2. Nf3 {[%clk 0:02:58]}  d6 {[%clk 0:02:59]} 3. d4 {[%clk 0:02:56]}  cxd4 {[%clk 0:03:00]} 4. Nxd4 {[%clk 0:02:56]}  Nf6 {[%clk 0:03:01]} 5. Nc3 {[%clk 0:02:55]}  a6 {[%clk 0:03:01]} 6. h4 {[%clk 0:02:55]}  e5 {[%clk 0:03:00]} 7. Nb3 {[%clk 0:02:55]}  Bg4 {[%clk 0:02:55]} 8. f3 {[%clk 0:02:54]}  Be6 {[%clk 0:02:55]} 9. f4 {[%clk 0:02:52]}  Bg4 {[%clk 0:02:49]} 10. Be2 {[%clk 0:02:45]}  h5 {[%clk 0:02:48]} 11. Be3 {[%clk 0:02:42]}  Nc6 {[%clk 0:02:43]} 12. Qd2 {[%clk 0:02:39]}  b5 {[%clk 0:02:40]} 13. Bxg4 {[%clk 0:02:31]}  Nxg4 {[%clk 0:02:39]} 14. f5 {[%clk 0:02:27]}  Be7 {[%clk 0:02:34]} 15. g3 {[%clk 0:02:26]}  Nf6 {[%clk 0:02:23]} 16. Qd3 {[%clk 0:02:13]}  Nb4 {[%clk 0:02:08]} 17. Qe2 {[%clk 0:02:08]}  d5 {[%clk 0:02:01]} 18. exd5 {[%clk 0:02:04]}  Rc8 {[%clk 0:01:27]} 19. a3 {[%clk 0:01:35]}  Nbxd5 {[%clk 0:01:19]} 20. O-O-O {[%clk 0:01:29]}  O-O {[%clk 0:01:15]} 21. Nxd5 {[%clk 0:01:24]}  Nxd5 {[%clk 0:01:12]} 22. Kb1 {[%clk 0:01:07]}  Bxa3 {[%clk 0:00:50]} 23. Qf3 {[%clk 0:01:01]}  Qc7 {[%clk 0:00:48]} 24. Rh2 {[%clk 0:00:50]}  Nc3+ {[%clk 0:00:35]} 25. Ka1 {[%clk 0:00:39]}  Nxd1 {[%clk 0:00:21]} 26. Qxd1 {[%clk 0:00:40]}  Rfd8 {[%clk 0:00:20]} 27. Qxh5 {[%clk 0:00:39]}  Bb4 {[%clk 0:00:10]} 28. f6 {[%clk 0:00:37]}  g6 {[%clk 0:00:09]} 29. Qg4 {[%clk 0:00:28]}  Qd7 {[%clk 0:00:08]} 30. Qxb4 {[%clk 0:00:27]}  Qd1+ {[%clk 0:00:08]} 31. Ka2 {[%clk 0:00:27]}  Rxc2 {[%clk 0:00:09]} 32. Rxc2 {[%clk 0:00:25]}  Qxc2 {[%clk 0:00:10]} 33. Qe7 {[%clk 0:00:24]}  Qc8 {[%clk 0:00:05]} 34. h5 {[%clk 0:00:22]}  gxh5 {[%clk 0:00:04]} 35. Qxe5 {[%clk 0:00:20]}  Kf8 {[%clk 0:00:03]} 36. Bc5+ {[%clk 0:00:20]}  Kg8 {[%clk 0:00:03]} 37. Qg5+ {[%clk 0:00:20]}  Kh7 {[%clk 0:00:03]} 38. Qg7# {[%clk 0:00:21]} 1-0


[Site "https://www.chess.com"]

[Event "Titled Tuesday Blitz August 1 Early 2023"]
[White "Fiorito, Francisco"]
[Black "Al Mukhaini, Shima"]
[WhiteFideId "180165"]
[BlackFideId "22005854"]
[WhiteElo "2532"]
[BlackElo "2423"]
[Result "1-0"]
[Round "9"]
[TimeControl "180+1"]
[Date "2023.08.01"]
[WhiteClock "0:02:02"]
[BlackClock "0:02:20"]
[Board "101"]

1. e4 {[%clk 0:02:59]}  e6 {[%clk 0:02:59]} 2. d4 {[%clk 0:02:53]}  c5 {[%clk 0:02:59]} 3. c3 {[%clk 0:02:43]}  d5 {[%clk 0:02:58]} 4. e5 {[%clk 0:02:43]}  Nc6 {[%clk 0:02:57]} 5. Nf3 {[%clk 0:02:43]}  Qb6 {[%clk 0:02:57]} 6. a3 {[%clk 0:02:35]}  a5 {[%clk 0:02:56]} 7. Be2 {[%clk 0:02:32]}  Bd7 {[%clk 0:02:57]} 8. O-O {[%clk 0:02:26]}  cxd4 {[%clk 0:02:57]} 9. cxd4 {[%clk 0:02:27]}  Nge7 {[%clk 0:02:57]} 10. Nc3 {[%clk 0:02:23]}  Nf5 {[%clk 0:02:57]} 11. Nb5 {[%clk 0:02:21]}  Nxe5 {[%clk 0:02:50]} 12. dxe5 {[%clk 0:02:18]}  Bxb5 {[%clk 0:02:50]} 13. Qb3 {[%clk 0:02:18]}  Bc5 {[%clk 0:02:43]} 14. Qxb5+ {[%clk 0:02:17]}  Qxb5 {[%clk 0:02:42]} 15. Bxb5+ {[%clk 0:02:18]}  Ke7 {[%clk 0:02:42]} 16. Bd2 {[%clk 0:02:09]}  Rhc8 {[%clk 0:02:36]} 17. Rac1 {[%clk 0:02:03]}  b6 {[%clk 0:02:35]} 18. b4 {[%clk 0:02:01]}  axb4 {[%clk 0:02:34]} 19. axb4 {[%clk 0:02:02]}  Bd4 {[%clk 0:02:20]} 20. g4 {[%clk 0:02:02]} 1-0


[Site "https://www.chess.com"]

[Event "Titled Tuesday Blitz August 1 Early 2023"]
[White "Castella Garcia, Fausto"]
[Black "Toropov, Pavel"]
[WhiteFideId "3501922"]
[BlackFideId "24129178"]
[WhiteElo "2415"]
[BlackElo "2530"]
[Result "0-1"]
[Round "9"]
[TimeControl "180+1"]
[Date "2023.08.01"]
[WhiteClock "0:00:02"]
[BlackClock "0:00:05"]
[Board "102"]

1. e4 {[%clk 0:02:50]}  e6 {[%clk 0:02:59]} 2. Nf3 {[%clk 0:02:50]}  d5 {[%clk 0:03:00]} 3. e5 {[%clk 0:02:50]}  c5 {[%clk 0:02:59]} 4. b4 {[%clk 0:02:49]}  cxb4 {[%clk 0:02:57]} 5. d4 {[%clk 0:02:49]}  Nc6 {[%clk 0:02:52]} 6. a3 {[%clk 0:02:50]}  Bd7 {[%clk 0:02:20]} 7. axb4 {[%clk 0:02:41]}  Bxb4+ {[%clk 0:02:21]} 8. c3 {[%clk 0:02:41]}  Be7 {[%clk 0:02:18]} 9. Bd3 {[%clk 0:02:41]}  h5 {[%clk 0:02:16]} 10. h4 {[%clk 0:02:41]}  Nh6 {[%clk 0:02:16]} 11. Ba3 {[%clk 0:02:31]}  Rc8 {[%clk 0:02:02]} 12. Bxe7 {[%clk 0:02:24]}  Qxe7 {[%clk 0:02:03]} 13. O-O {[%clk 0:02:14]}  a6 {[%clk 0:01:57]} 14. Nbd2 {[%clk 0:02:01]}  Na7 {[%clk 0:01:56]} 15. c4 {[%clk 0:01:59]}  Bc6 {[%clk 0:01:42]} 16. cxd5 {[%clk 0:01:53]}  Bxd5 {[%clk 0:01:40]} 17. Ne4 {[%clk 0:01:53]}  Bxe4 {[%clk 0:01:35]} 18. Bxe4 {[%clk 0:01:53]}  Nb5 {[%clk 0:01:35]} 19. Rc1 {[%clk 0:01:41]}  O-O {[%clk 0:01:32]} 20. Rxc8 {[%clk 0:01:26]}  Rxc8 {[%clk 0:01:33]} 21. Ng5 {[%clk 0:01:26]}  Rd8 {[%clk 0:01:05]} 22. Qxh5 {[%clk 0:01:18]}  Nxd4 {[%clk 0:01:03]} 23. Nh7 {[%clk 0:00:44]}  Ndf5 {[%clk 0:00:49]} 24. Bxf5 {[%clk 0:00:44]}  exf5 {[%clk 0:00:41]} 25. Nf6+ {[%clk 0:00:27]}  gxf6 {[%clk 0:00:32]} 26. Qxh6 {[%clk 0:00:24]}  fxe5 {[%clk 0:00:32]} 27. Rc1 {[%clk 0:00:20]}  a5 {[%clk 0:00:22]} 28. Rc5 {[%clk 0:00:15]}  b6 {[%clk 0:00:17]} 29. Rxe5 {[%clk 0:00:14]}  Qxe5 {[%clk 0:00:12]} 30. Qg5+ {[%clk 0:00:13]}  Kh7 {[%clk 0:00:12]} 31. Qxd8 {[%clk 0:00:12]}  a4 {[%clk 0:00:12]} 32. Qd7 {[%clk 0:00:10]}  a3 {[%clk 0:00:11]} 33. Qxf7+ {[%clk 0:00:08]}  Kh6 {[%clk 0:00:10]} 34. Qf8+ {[%clk 0:00:07]}  Kg6 {[%clk 0:00:10]} 35. Qxa3 {[%clk 0:00:04]}  Qe1+ {[%clk 0:00:10]} 36. Kh2 {[%clk 0:00:04]}  Qxf2 {[%clk 0:00:11]} 37. Qd6+ {[%clk 0:00:03]}  Kh5 {[%clk 0:00:09]} 38. Qe5 {[%clk 0:00:02]}  Qxh4+ {[%clk 0:00:09]} 39. Kg1 {[%clk 0:00:02]}  Qe4 {[%clk 0:00:08]} 40. Qh8+ {[%clk 0:00:02]}  Kg5 {[%clk 0:00:08]} 41. Qg8+ {[%clk 0:00:02]}  Kf4 {[%clk 0:00:08]} 42. Qb8+ {[%clk 0:00:03]}  Kg4 {[%clk 0:00:06]} 43. Qxb6 {[%clk 0:00:03]}  Qe1+ {[%clk 0:00:06]} 44. Kh2 {[%clk 0:00:03]}  Qg3+ {[%clk 0:00:07]} 45. Kg1 {[%clk 0:00:04]}  Qe1+ {[%clk 0:00:07]} 46. Kh2 {[%clk 0:00:04]}  Kg5 {[%clk 0:00:07]} 47. Qd4 {[%clk 0:00:02]}  Kg6 {[%clk 0:00:06]} 48. Qd6+ {[%clk 0:00:02]}  Kg5 {[%clk 0:00:06]} 49. Qd8+ {[%clk 0:00:02]}  Kh5 {[%clk 0:00:06]} 50. Qh8+ {[%clk 0:00:02]}  Kg6 {[%clk 0:00:06]} 51. Qg8+ {[%clk 0:00:02]}  Kh5 {[%clk 0:00:07]} 52. Qh8+ {[%clk 0:00:02]}  Kg5 {[%clk 0:00:07]} 53. Qg8+ {[%clk 0:00:03]}  Kf4 {[%clk 0:00:07]} 54. Qb8+ {[%clk 0:00:02]}  Kg4 {[%clk 0:00:07]} 55. Qg8+ {[%clk 0:00:02]}  Kh5 {[%clk 0:00:07]} 56. Qh7+ {[%clk 0:00:02]}  Kg5 {[%clk 0:00:07]} 57. Qg7+ {[%clk 0:00:03]}  Kf4 {[%clk 0:00:07]} 58. Qh6+ {[%clk 0:00:03]}  Ke5 {[%clk 0:00:07]} 59. Qf8 {[%clk 0:00:03]}  Qh4+ {[%clk 0:00:06]} 60. Kg1 {[%clk 0:00:04]}  Qd4+ {[%clk 0:00:07]} 61. Kf1 {[%clk 0:00:03]}  Kf4 {[%clk 0:00:08]} 62. Qb8+ {[%clk 0:00:03]}  Ke3 {[%clk 0:00:08]} 63. Qe8+ {[%clk 0:00:02]}  Kd3 {[%clk 0:00:08]} 64. Qf7 {[%clk 0:00:02]}  Qf4+ {[%clk 0:00:08]} 65. Kg1 {[%clk 0:00:02]}  Ke2 {[%clk 0:00:09]} 66. Kh1 {[%clk 0:00:02]}  Kf2 {[%clk 0:00:07]} 67. Qb7 {[%clk 0:00:02]}  Qh4# {[%clk 0:00:05]} 0-1


[Site "https://www.chess.com"]